[Event "1st Bangalore GM-Open-A 2024"]
[Site "Bangalore"]
[Date "2024.01.18"]
[Round "1.1"]
[White "Gupta, Abhijeet"]
[Black "Apaar Saxena"]
[Result "1-0"]
[ECO "D02"]
[WhiteElo "2605"]
[BlackElo "2150"]
[Annotator "TA"]
[PlyCount "49"]
[EventDate "2024.01.20"]
[EventType "swiss"]
[EventCountry "IND"]
[SourceTitle "playchess.com"]
[Source "ChessBase"]
[SourceQuality "1"]
[TimeControl "5400+30"]

{[%evp 9,49,-31,-26,-24,-27,-23,-26,-16,-21,-26,11,14,14,18,70,15,37,11,181,176,244,240,235,233,270,271,310,307,493,484,684,672,904,904,785,862,781,720,1374,1441,1866,1776]} 1. Nf3 {[%emt 0:00:27]} d5 {[%emt 0:00:19]} 2. d4 {[%emt 0:00:12]} Nf6 {[%emt 0:00:08]} 3. c3 {[%emt 0:00:09]} c5 {[%emt 0:17:59]} 4. dxc5 {[%emt 0:00:28]} e6 {[%emt 0:00:31]} 5. b4 {[%emt 0:00:19]} a5 $1 {[%emt 0:01:10]} 6. e3 {[%emt 0:01:21] D02: 1 d4 d5 2 Nf3 sidelines, including 2...Nf6 3 g3 and 2...Nf6 3 Bf4.} axb4 {[%emt 0:06:13]} 7. cxb4 {[%emt 0:00:06]} b6 $1 {[%emt 0:00:10]} 8. Bb5+ {[%emt 0:00:45] Black has an edge.} Bd7 {[%emt 0:01:34]} 9. Bxd7+ {[%emt 0:00:28]} Nfxd7 {[%emt 0:03:18]} 10. a4 {[%emt 0:02:35]} bxc5 {[%emt 0:08:28]} 11. b5 {[%emt 0:00:26] [#]} Bd6 $146 {[%emt 0:01:31]} ({Black should try} 11... Nf6 $11) ({Predecessor:} 11... Be7 12. Bb2 O-O 13. O-O Bf6 14. Bxf6 Nxf6 15. Nbd2 Nbd7 16. Qc2 Qc7 17. h3 h6 {1-0 Sai Agni,J (2226)-Morais,M (1844) Sitges Sunway op 9th 2022 (5)}) 12. Bb2 {[%emt 0:01:19]} (12. e4 $14) 12... O-O {[%emt 0:03:50]} 13. O-O {[%emt 0:01:45]} c4 $2 {[%emt 0:05:40] [#] Black cannot hold the game after this.} (13... Nf6 $11) 14. e4 $1 $18 {[%emt 0:06:33]} (14. Qd4 Nf6 $14) 14... dxe4 {[%emt 0:05:24]} (14... Nb6 {keeps fighting.}) 15. Qxd6 {[%emt 0:01:09]} exf3 {[%emt 0:00:03]} 16. Nd2 $40 {[%emt 0:08:39][%cal Bb1d2,Bd2c4,Bc4b6][%mdl 160] White wants a kill.} ({Resist} 16. gxf3 $6 Qg5+ 17. Kh1 Qh4 $16) 16... fxg2 {[%emt 0:02:01]} 17. Rfd1 {[%emt 0:00:10]} Qg5 {[%emt 0:09:13]} 18. Nxc4 {[%emt 0:02:47]} Nc5 $2 {[%emt 0:04:55] Black is weak on the dark squares} (18... h6 19. Qg3 Qxg3 20. hxg3 (20. fxg3 Rc8 $18) 20... Rc8) 19. Nb6 {[%emt 0:11:13] White is clearly winning.} ({Weaker is} 19. f4 Qf5 20. Nb6 (20. Kxg2 Qe4+ 21. Kg1 Qxc4 $17) 20... Ne4 $18) 19... Ra7 {[%emt 0:04:49]} (19... Ne4 $2 20. Qd4 Nxf2 21. Qxf2 (21. Nxa8 $2 Nh3#)) (19... Nxa4 $142 20. Ba3 (20. Rxa4 Rxa4 21. Nxa4 Qxb5 $18) 20... Re8 21. Nxa8 Nc3) 20. Ba3 {[%emt 0:01:30]} Nbd7 {[%emt 0:01:32]} 21. Nxd7 {[%emt 0:01:00][%mdl 64] [#] Remove Defender} Nxd7 {[%emt 0:00:29]} 22. b6 {[%emt 0:00:37]} Rb7 {[%emt 0:03:42]} 23. Qc6 $1 {[%emt 0:01:08][%csl LRb7,LRd7,LRf8,LRg2]} Rxb6 {[%emt 0:05:43]} 24. Qxd7 {[%emt 0:01:18]} Rfb8 {[%emt 0:00:11]} 25. Be7 {[%emt 0:01:38] An entertaining game by Gupta.   Weighted Error Value: White=0.07 (flawless) /Black=0.65} 1-0

[Event "1st Bangalore GM-Open-A 2024"]
[Site "Bangalore"]
[Date "2024.01.18"]
[Round "1.2"]
[White "Raghav V"]
[Black "Sethuraman, S.P."]
[Result "1/2-1/2"]
[ECO "A19"]
[WhiteElo "2150"]
[BlackElo "2594"]
[Annotator "TA"]
[PlyCount "118"]
[EventDate "2024.01.20"]
[EventType "swiss"]
[EventCountry "IND"]
[SourceTitle "playchess.com"]
[Source "ChessBase"]
[SourceQuality "1"]
[TimeControl "5400+30"]

{[%evp 20,118,8,1,7,16,20,4,13,8,14,26,16,21,47,36,68,4,6,0,21,17,26,0,0,0,52,30,24,0,0,-5,-12,0,0,0,0,0,0,0,-4,-10,0,-71,-11,-8,-10,-9,-19,-15,0,0,0,0,0,0,0,0,0,-8,-8,-8,-8,-5,-6,-4,0,0,8,8,8,8,8,8,8,8,8,8,8,8,8,8,8,8,8,8,8,8,8,8,8,8,8,0,0,0,0,0,0,0,0]} 1. c4 {[%emt 0:00:03]} Nf6 {[%emt 0:01:06]} 2. Nc3 {[%emt 0:00:11]} e6 {[%emt 0:01:23]} 3. e4 {[%emt 0:00:05][%cal Be2e4,Be4e5][%mdl 32]} c5 {[%emt 0:00:27]} 4. e5 {[%emt 0:00:07]} Ng8 {[%emt 0:00:07]} 5. Nf3 {[%emt 0:00:16]} Nc6 {[%emt 0:00:06]} 6. d4 {[%emt 0:00:08]} cxd4 {[%emt 0:00:13]} 7. Nxd4 {[%emt 0:00:06]} Nxe5 {[%emt 0:00:43]} 8. Ndb5 {[%emt 0:00:05]} f6 {[%emt 0:01:47]} 9. Be3 {[%emt 0:03:40]} a6 {[%emt 0:00:59]} 10. Nd6+ {[%emt 0:00:09]} Bxd6 {[%emt 0:00:05]} 11. Qxd6 {[%emt 0:00:08]} Ne7 {[%emt 0:00:42] A19: English Opening: Flohr-Mikenas System with 3...c5.} 12. Bb6 {[%emt 0:01:03]} Nf5 {[%emt 0:00:07]} 13. Qb4 {[%emt 0:00:51]} Nc6 {[%emt 0:20:27]} 14. Qc5 {[%emt 0:00:07]} d6 {[%emt 0:01:18]} 15. Bxd8 {[%emt 0:00:13]} dxc5 {[%emt 0:00:05]} 16. Bb6 {[%emt 0:00:11][%cal Oe1c1]} e5 {[%emt 0:06:58] [#]} 17. Bxc5 $146 {[%emt 0:10:11]} ({Predecessor:} 17. O-O-O Ncd4 18. Bxc5 Bd7 19. Bd3 Rc8 20. Bxd4 Nxd4 21. f4 Bg4 22. Rde1 Nc6 23. Be4 {½-½ Giri,A (2767)-Dubov,D (2648) EU-Cup 32nd Novi Sad 2016 (3.2)}) 17... Be6 {[%emt 0:06:14]} 18. Ne4 {[%emt 0:09:28]} (18. O-O-O $14) 18... O-O-O $11 {[%emt 0:09:06]} 19. Bb6 {[%emt 0:05:17]} Rd7 {[%emt 0:00:58]} (19... Nb4 $5 {[%cal Rb4c2]} 20. Bxd8 Rxd8 $11) 20. Nc5 {[%emt 0:01:37][%csl LRd7,LRe6][%cal Oc5d7]} Rd6 {[%emt 0:00:05]} 21. Ne4 {[%emt 0:05:00]} Rd7 {[%emt 0:00:06]} 22. Nc5 {[%emt 0:00:13][%csl LRd7,LRe6][%cal Oc5d7]} Re7 {[%emt 0:00:04]} (22... Rd6 $11 23. Ne4 Rd7) 23. Nxe6 {[%emt 0:07:08]} Rxe6 {[%emt 0:00:05]} 24. c5 {[%emt 0:02:23]} e4 {[%emt 0:07:26]} 25. Bc4 {[%emt 0:02:49]} Re5 {[%emt 0:07:30]} 26. O-O-O {[%emt 0:03:25]} Rhe8 {[%emt 0:01:03]} 27. g4 {[%emt 0:06:08]} Nfd4 {[%emt 0:01:50]} 28. Rd2 {[%emt 0:01:21]} e3 {[%emt 0:04:55]} 29. fxe3 {[%emt 0:01:09]} Rxe3 {[%emt 0:00:12]} 30. Rhd1 {[%emt 0:01:14][%cal Oc4f7] And now Bf7! would win.} Re1 {[%emt 0:00:09]} 31. b4 {[%emt 0:05:40] [#]} Rxd1+ {[%emt 0:08:24]} ({Black should play} 31... Nf3 $1 $17 {[%cal Rf3d2]} 32. Rd6 Rxd1+ 33. Kxd1 Re1+ 34. Kc2 Nxb4+ 35. Kb2 Nc6) 32. Rxd1 {[%emt 0:04:10] The position is equal.} Re4 {[%emt 0:00:15]} 33. Bd3 {[%emt 0:06:16] This pair of bishops is nice.} Rxg4 {[%emt 0:01:19]} 34. a4 $1 {[%emt 0:02:09]} g6 {[%emt 0:17:04]} (34... Nxb4 $2 35. Bf5+ Kb8 36. Bxg4 $18) 35. b5 {[%emt 0:00:56]} axb5 {[%emt 0:00:04]} 36. axb5 {[%emt 0:00:10]} Ne5 {[%emt 0:00:24]} 37. Bf1 {[%emt 0:05:06] aiming for Bh3.} Rf4 {[%emt 0:02:25]} 38. c6 {[%emt 0:01:00] Dodges Nd7. Black must now prevent Bh3+.} Ne6 $1 {[%emt 0:00:15]} 39. Bh3 {[%emt 0:00:49][%csl Gb6][%cal Rd1d8]} f5 {[%emt 0:00:23]} 40. Rd6 {[%emt 0:00:16]} Nc7 {[%emt 0:02:25]} 41. Bxc7 {[%emt 0:01:43]} ({But not} 41. cxb7+ Kxb7 42. Bg2+ Kc8 $15) 41... Kxc7 {[%emt 0:00:04][%mdl 4096] Endgame KRB-KRN} 42. Re6 {[%emt 0:00:10] Threatens to win with Re7+.} Nd3+ {[%emt 0:00:50]} 43. Kd2 {[%emt 0:01:06]} Re4 {[%emt 0:01:15]} 44. b6+ {[%emt 0:06:05]} Kxb6 {[%emt 0:00:05]} 45. cxb7+ {[%emt 0:00:10]} Kc7 {[%emt 0:00:48] [#]} (45... Rxe6 $2 46. b8=Q+ (46. b8=B $2 {too greedy.} Ne5 $19) 46... Kc5 47. Kxd3 $18) 46. Rb6 {[%emt 0:03:06][%mdl 64] Decoy, Promotion} Re8 {[%emt 0:00:03]} 47. b8=Q+ {[%emt 0:00:17]} Rxb8 {[%emt 0:00:02]} 48. Rxb8 {[%emt 0:00:09]} Kxb8 {[%emt 0:00:03]} 49. Kxd3 {[%emt 0:00:06] Kd4 would be deadly. KB-K3P} Kc7 {[%emt 0:00:04]} 50. Kd4 {[%emt 0:00:11] With the idea Ke5.} Kd6 {[%emt 0:00:04]} 51. Bg2 {[%emt 0:00:30]} Ke6 {[%emt 0:00:04]} 52. Bd5+ {[%emt 0:00:12]} Kf6 {[%emt 0:00:04]} 53. Ke3 {[%emt 0:00:08]} g5 {[%emt 0:00:05]} 54. h3 {[%emt 0:00:32]} h5 {[%emt 0:00:16]} 55. Bf3 {[%emt 0:00:14]} g4 {[%emt 0:00:04]} 56. hxg4 {[%emt 0:00:04]} fxg4 {[%emt 0:00:03]} 57. Bxg4 {[%emt 0:00:25]} hxg4 {[%emt 0:00:04]} 58. Kf4 {[%emt 0:00:04]} g3 {[%emt 0:00:03][%mdl 64] Deflection} 59. Kxg3 {[%emt 0:00:03]} Ke5 {[%emt 0:00:03] An exciting game.   Weighted Error Value: White=0.07 (flawless) /Black=0.08 (flawless)} 1/2-1/2

[Event "1st Bangalore GM-Open-A 2024"]
[Site "Bangalore"]
[Date "2024.01.18"]
[Round "1.3"]
[White "Short, Nigel D"]
[Black "Mohota, Nisha"]
[Result "1-0"]
[ECO "C90"]
[WhiteElo "2592"]
[BlackElo "2147"]
[Annotator "TA"]
[PlyCount "69"]
[EventDate "2024.01.20"]
[EventType "swiss"]
[EventCountry "IND"]
[SourceTitle "playchess.com"]
[Source "ChessBase"]
[SourceQuality "1"]
[TimeControl "5400+30"]

{[%evp 18,69,22,18,57,49,33,25,18,30,78,72,153,160,157,161,179,166,150,146,195,132,148,142,167,162,165,173,168,178,195,196,213,194,258,137,144,147,141,143,210,214,302,301,830,758,1209,1124,1126,530,1001,990,2661,2084]} 1. e4 {[%emt 0:00:23]} e5 {[%emt 0:00:18]} 2. Nf3 {[%emt 0:00:08]} Nc6 {[%emt 0:00:07]} 3. Bb5 {[%emt 0:00:06]} a6 {[%emt 0:00:05]} 4. Ba4 {[%emt 0:00:05]} Nf6 {[%emt 0:00:24]} 5. O-O {[%emt 0:00:11]} Be7 {[%emt 0:00:15]} 6. Re1 {[%emt 0:00:22]} b5 {[%emt 0:00:16]} 7. Bb3 {[%emt 0:00:08]} d6 {[%emt 0:00:09]} 8. a4 {[%emt 0:01:08]} Bd7 {[%emt 0:02:02]} 9. c3 {[%emt 0:00:10]} O-O {[%emt 0:02:55]} 10. d4 {[%emt 0:02:43] [#]} b4 $146 {[%emt 0:00:42] C90: Closed Ruy Lopez with 7...d6: Early deviations.} ({Predecessor:} 10... h6 11. Nbd2 exd4 12. cxd4 Nb4 13. e5 Nfd5 14. Ne4 bxa4 15. Bxa4 Bxa4 16. Rxa4 Qd7 17. Ra5 Rab8 18. Bd2 {1-0 Yu,Y (2763)-Vitiugov,N (2732) FIDE World Cup 2019 (5.5)}) 11. d5 {[%emt 0:02:41]} Na5 {[%emt 0:03:14]} 12. cxb4 {[%emt 0:01:29]} Nxb3 {[%emt 0:00:04] White has an edge.} 13. Qxb3 {[%emt 0:00:09]} Nh5 {[%emt 0:06:46]} (13... Rb8 $11) 14. Nc3 {[%emt 0:01:32]} f5 {[%emt 0:04:15] [#]} (14... Qc8 $142) 15. Nxe5 $1 $16 {[%emt 0:01:59][%mdl 512]} dxe5 {[%emt 0:09:09]} 16. d6+ {[%emt 0:00:19][%mdl 64] Discovered Attack} Kh8 {[%emt 0:00:03]} 17. dxe7 {[%emt 0:00:12]} Qxe7 {[%emt 0:00:06]} 18. Be3 {[%emt 0:05:43]} Rab8 {[%emt 0:11:19]} (18... Be6 $16 19. Qd1 Qh4) 19. Qd1 {[%emt 0:04:41]} (19. Qc4 $18) 19... Qf7 {[%emt 0:01:11]} 20. Qd5 {[%emt 0:02:50]} Qe8 {[%emt 0:09:07]} 21. exf5 {[%emt 0:03:34]} Rxf5 {[%emt 0:06:42]} 22. Qc4 {[%emt 0:05:30]} Rf8 {[%emt 0:12:29]} 23. f3 {[%emt 0:09:49]} (23. Qxc7 Rc8 24. Qd6 Rf6) 23... Qg6 {[%emt 0:06:17]} 24. Kh1 {[%emt 0:06:12]} ({But not} 24. Qxc7 Bc6 25. Qxe5 Rxb4) 24... Be6 {[%emt 0:10:54]} 25. Qe4 {[%emt 0:02:50]} ({Don't take} 25. Qxc7 Rxb4 26. Qd6 (26. Qxe5 Rxb2 27. Qg5 Bf7 $16) 26... Rfb8) 25... Bf5 {[%emt 0:02:05]} (25... Qxe4 {was necessary.} 26. Nxe4 Bc4) 26. Qh4 {[%emt 0:02:04]} ({Only move:} 26. Qxe5 $18 {Bc5 would be deadly.} Bc2 27. Nd5) 26... Bd3 {[%emt 0:02:38]} 27. Rad1 {[%emt 0:00:28][%cal Od1d3]} Nf4 {[%emt 0:01:26][%csl Gf4][%cal Rg6g2]} 28. Rd2 {[%emt 0:04:20]} Rf6 {[%emt 0:08:14]} (28... h6 $16 29. Qf2 Rfe8) 29. Red1 $18 {[%emt 0:15:09] Threatens to win with g3.} h6 {[%emt 0:01:01]} (29... Bc2 {was worth a try.}) 30. g3 {[%emt 0:06:14][%cal Bg2g3,Bg3f4,Bf4e5][%mdl 32]} Rxb4 {[%emt 0:00:43]} (30... Bc2) 31. gxf4 {[%emt 0:00:20] White is clearly winning.} Bc2 {[%emt 0:00:31]} 32. Rg1 {[%emt 0:00:16]} Qf5 {[%emt 0:00:31]} 33. Qg3 {[%emt 0:00:45][%csl Gg1][%cal Rg3g7]} Rf7 {[%emt 0:00:26]} 34. fxe5 {[%emt 0:00:23]} Rxb2 {[%emt 0:00:34] [#]} 35. Bxh6 $1 {[%emt 0:00:29] Weighted Error Value: White=0.45/Black=0.38} 1-0

[Event "1st Bangalore GM-Open-A 2024"]
[Site "Bangalore"]
[Date "2024.01.18"]
[Round "1.4"]
[White "Sathvik Adiga"]
[Black "Ghosh, Diptayan"]
[Result "1/2-1/2"]
[ECO "C55"]
[WhiteElo "2142"]
[BlackElo "2568"]
[Annotator "TA"]
[PlyCount "104"]
[EventDate "2024.01.20"]
[EventType "swiss"]
[EventCountry "IND"]
[SourceTitle "playchess.com"]
[Source "ChessBase"]
[SourceQuality "1"]
[TimeControl "5400+30"]

{[%evp 13,104,36,43,32,37,33,40,27,31,27,29,30,39,0,23,0,30,18,7,0,0,0,0,0,0,0,45,33,37,34,68,49,73,70,58,49,84,29,66,17,62,37,27,18,70,62,72,72,54,58,66,49,55,7,15,0,4,8,75,20,20,0,0,0,0,0,16,14,14,-39,-18,-43,-43,-229,-247,-379,-378,-329,0,0,0,0,0,0,0,0,0,0,54,0,0,0,8]} 1. e4 {[%emt 0:00:04]} e5 {[%emt 0:00:23]} 2. Nf3 {[%emt 0:00:05]} Nc6 {[%emt 0:00:05]} 3. Bc4 {[%emt 0:00:06]} Nf6 {[%emt 0:00:20]} 4. d3 {[%emt 0:00:07]} Be7 {[%emt 0:00:32]} 5. O-O {[%emt 0:00:19]} d6 {[%emt 0:00:11]} 6. a4 {[%emt 0:00:17]} O-O {[%emt 0:00:11]} 7. Re1 {[%emt 0:00:10]} Be6 {[%emt 0:02:52]} 8. Bxe6 {[%emt 0:05:06] C55: Two Knights: 4 d3, 4 d4 exd4 5 e5 and Max Lange Attack.} fxe6 {[%emt 0:00:20]} 9. c3 {[%emt 0:01:09]} h6 {[%emt 0:08:15] 9...a5 is a critical line.} 10. Nbd2 {[%emt 0:02:25] White is slightly better.} a5 {[%emt 0:08:43]} 11. Nf1 {[%emt 0:02:40]} Qd7 {[%emt 0:10:58]} 12. Qb3 {[%emt 0:04:56]} b6 {[%emt 0:03:16] [#]} 13. Be3 $146 {[%emt 0:08:25]} ({Predecessor:} 13. Bd2 d5 14. Ng3 Bd6 15. Qb5 Rae8 16. d4 Nxe4 17. Nxe4 dxe4 18. Rxe4 exd4 19. Nxd4 {1-0 Sadhwani,R (2627)-Esipenko,A (2675) Titled Tuesday intern op 17th Jan Late blitz 2023 (7)}) 13... Rf7 {[%emt 0:06:41]} 14. h3 {[%emt 0:04:34]} Raf8 {[%emt 0:02:20]} 15. Ng3 {[%emt 0:04:40]} Nh7 {[%emt 0:05:20]} 16. Rad1 {[%emt 0:05:34]} Rxf3 {[%emt 0:10:03]} 17. gxf3 {[%emt 0:00:21]} Ng5 {[%emt 0:07:33]} 18. Bxg5 {[%emt 0:07:50]} Bxg5 {[%emt 0:00:05]} 19. Qb5 {[%emt 0:01:25]} Rxf3 {[%emt 0:01:44][%cal Od7f7]} (19... Qf7 $5 {[%cal Rf7f3]} 20. Rf1 (20. Qxc6 Qxf3 21. Re2 Bf4 $11) 20... Qxf3 $11) 20. d4 {[%emt 0:01:07]} Rf8 {[%emt 0:16:18]} 21. Re2 {[%emt 0:09:51]} Bf4 {[%emt 0:02:32]} 22. Rd3 {[%emt 0:00:56]} (22. d5 {with more complications.} Nb8 23. Kg2 Bg5 24. dxe6 Qxe6 25. Qd5) 22... Nb8 {[%emt 0:05:16]} 23. Qxd7 {[%emt 0:06:04]} Nxd7 {[%emt 0:00:02]} 24. Kg2 {[%emt 0:01:15]} g6 {[%emt 0:01:27]} 25. Re1 {[%emt 0:02:02]} ({White should play} 25. Rc2 $16) 25... Bg5 {[%emt 0:02:00]} 26. Rdd1 {[%emt 0:07:08]} (26. Rf1 $14 {might be stronger.}) 26... Kf7 {[%emt 0:00:51]} 27. Rh1 {[%emt 0:02:07]} Ke7 {[%emt 0:01:49]} 28. h4 {[%emt 0:03:51]} Bf4 {[%emt 0:00:01]} (28... Bf6 $1 $11) 29. Ne2 $14 {[%emt 0:01:26]} exd4 {[%emt 0:02:22]} 30. cxd4 {[%emt 0:00:43]} (30. Nxd4 $6 Nc5 $11) 30... c5 {[%emt 0:00:09]} 31. Rh3 {[%emt 0:05:07]} cxd4 {[%emt 0:00:32]} 32. Rf3 {[%emt 0:02:00] White is more active.} g5 {[%emt 0:00:46]} 33. hxg5 {[%emt 0:00:46]} (33. Rxd4 Be5 34. Rxf8 Bxd4 $11) (33. Nxf4 $14 gxf4 34. Rxd4) 33... hxg5 $11 {[%emt 0:00:05]} 34. Nxf4 {[%emt 0:00:06]} (34. Nxd4 {feels hotter.} Nc5 35. Rh1 Kf6 36. Nc6) 34... gxf4 {[%emt 0:00:39]} 35. Rxd4 $14 {[%emt 0:00:09][%mdl 4096] Endgame KRR-KRN} Rc8 {[%emt 0:01:57]} (35... Ne5 $11 {remains equal.} 36. Rh3 f3+ 37. Kh2 Rg8) 36. Rh3 {[%emt 0:01:18]} (36. Rxf4 $2 e5 37. Rd2 exf4 $19) (36. Rd2 $16) 36... Nf6 $11 {[%emt 0:00:33]} 37. Rb3 {[%emt 0:07:50]} e5 {[%emt 0:00:40]} 38. Rd1 {[%emt 0:00:59]} Nxe4 {[%emt 0:00:27]} 39. Rxb6 {[%emt 0:00:23] aiming for Kf3.} Rc2 {[%emt 0:00:38]} (39... Ke6 $5 {[%cal Rc8c2]}) 40. Kf3 {[%emt 0:00:12]} Nd2+ {[%emt 0:00:29]} 41. Kg2 {[%emt 0:03:13]} (41. Ke2 $11 Nc4+ 42. Kd3 Rxb2 43. Rc6 (43. Rb5 $2 Rxb5 44. Kxc4 Rb4+ 45. Kc3 Rxa4 $19)) 41... Nc4 {[%emt 0:00:46][%csl LRb2,LRb6][%mdl 1024] Black has compensation.} 42. Rb7+ {[%emt 0:00:04]} Ke6 {[%emt 0:00:01]} 43. Rb1 $2 {[%emt 0:00:45] [#]} (43. Rh1 $15) 43... e4 $1 $19 {[%emt 0:00:15] Hoping for ...e3.} 44. b3 {[%emt 0:00:15]} (44. b4 $142 e3 45. Rf1) 44... Ne5 {[%emt 0:00:32]} 45. b4 {[%emt 0:00:55]} axb4 {[%emt 0:01:04]} (45... e3 $19 46. bxa5 (46. Rf1 $2 e2 $19) 46... Rxf2+ 47. Kh3 Rf3+ 48. Kg2 (48. Kh4 $2 e2 $19) 48... Rg3+ 49. Kf1 f3) 46. R7xb4 $11 {[%emt 0:00:26]} Kf5 {[%emt 0:00:11] Threatens to win with ...Nd3.} 47. R1b2 {[%emt 0:00:17]} Rc7 {[%emt 0:00:59] Strongly threatening ...f3+.} 48. Rb7 {[%emt 0:00:11]} Rc4 {[%emt 0:00:30]} 49. R7b4 {[%emt 0:00:12] [#] Black must now prevent Rxc4.} Rc8 {[%emt 0:00:35] ...f3+ would be deadly.} 50. Rb8 $1 {[%emt 0:00:14]} Rc5 {[%emt 0:00:29]} (50... Rc1 $11) 51. R2b5 {[%emt 0:00:28]} (51. Rf8+ $14 Ke6 52. Rb4 (52. Rxf4 Nd3 $16) 52... f3+ 53. Kg3) 51... Rc2 {[%emt 0:00:11]} 52. Rb2 {[%emt 0:00:06]} Rc7 {[%emt 0:00:53] Weighted Error Value: White=0.24 (precise) /Black=0.22 (precise)} 1/2-1/2

[Event "1st Bangalore GM-Open-A 2024"]
[Site "Bangalore"]
[Date "2024.01.18"]
[Round "1.5"]
[White "Aronyak Ghosh"]
[Black "Deshmukh, Anup"]
[Result "1-0"]
[ECO "A18"]
[WhiteElo "2541"]
[BlackElo "2139"]
[Annotator "RC"]
[PlyCount "63"]
[EventDate "2024.01.20"]
[EventType "swiss"]
[EventCountry "IND"]
[SourceTitle "playchess.com"]
[Source "ChessBase"]
[SourceQuality "1"]
[TimeControl "5400+30"]

1. c4 {[%emt 0:16:28]} Nf6 {[%emt 0:00:35]} 2. Nc3 {[%emt 0:00:00]} e6 {[%emt 0:00:00]} 3. e4 {[%emt 0:00:00]} e5 {[%emt 0:00:35]} 4. Nf3 {[%emt 0:00:00]} Nc6 {[%emt 0:00:22]} 5. a3 {[%emt 0:00:00]} a5 {[%emt 0:01:50]} 6. Be2 {[%emt 0:00:00]} d6 {[%emt 0:00:17]} 7. d4 {[%emt 0:00:00]} Bg4 {[%emt 0:02:28]} 8. d5 {[%emt 0:00:12]} Bxf3 {[%emt 0:01:06]} 9. Bxf3 {[%emt 0:04:41]} Nd4 {[%emt 0:00:11]} 10. Be3 {[%emt 0:01:08]} Nxf3+ {[%emt 0:00:52]} 11. Qxf3 {[%emt 0:00:06]} Be7 {[%emt 0:00:51]} 12. O-O {[%emt 0:03:19]} a4 {[%emt 0:01:24]} 13. Qd1 {[%emt 0:05:48]} Qd7 {[%emt 0:00:18]} 14. b3 {[%emt 0:00:37]} axb3 {[%emt 0:00:35]} 15. Qxb3 {[%emt 0:00:05]} b6 {[%emt 0:00:07]} 16. a4 {[%emt 0:01:53]} O-O {[%emt 0:00:13]} 17. f3 {[%emt 0:01:07]} Ra5 {[%emt 0:08:30]} 18. Nb5 {[%emt 0:06:51]} Rfa8 {[%emt 0:01:09]} 19. Ra2 {[%emt 0:00:28]} Qc8 {[%emt 0:02:46]} 20. Bd2 {[%emt 0:02:42]} R5a6 {[%emt 0:00:35]} 21. Rfa1 {[%emt 0:02:18]} Nd7 {[%emt 0:00:42]} 22. Bb4 {[%emt 0:03:24]} h5 {[%emt 0:07:12]} 23. a5 {[%emt 0:01:49]} bxa5 {[%emt 0:00:34]} 24. Rxa5 {[%emt 0:00:38]} Rxa5 {[%emt 0:00:34]} 25. Rxa5 {[%emt 0:00:46]} Rxa5 {[%emt 0:05:18]} 26. Bxa5 {[%emt 0:00:43]} Nc5 {[%emt 0:01:35]} 27. Qa2 {[%emt 0:05:12]} Bd8 {[%emt 0:03:00]} 28. Bd2 {[%emt 0:01:54]} Qa6 {[%emt 0:15:00]} 29. Qxa6 {[%emt 0:03:55]} Nxa6 {[%emt 0:00:07]} 30. Ba5 {[%emt 0:02:47]} f5 {[%emt 0:11:28]} 31. exf5 {[%emt 0:01:14]} Bg5 {[%emt 0:01:47]} 32. Bxc7 {[%emt 0:02:23]} 1-0